Cogmind - Beta 16 @@@ ROGUE MODE // 2025.10.22 @ 17:51:00 Player: Noname1208 Result: Destroyed by SG-KB2(R) with Subdweller Laser Performance ------------- Evolutions (0) 0 Regions Visited (2) 400 Robots Destroyed (2) 10 Value Destroyed (80) 80 Prototype IDs (2) 40 Alien Tech Used (0) 0 Bonus (0) 0 TOTAL SCORE: 530 Bonus ------- None Cogmind --------- Core Integrity 0/250 Matter 277/300 Energy 96/100 System Corruption 0% Temperature Cool (6) Movement Core (50) Location -10/Subcaves Parts ------- > --- POWER (1) -------- (None) > --- PROPULSION (2) --- (None) > --- UTILITY (2) ------ (None) > --- WEAPON (2) ------- Light Cannon > --- INVENTORY (5) ---- Ion Engine Aluminum Leg Peak State ------------ > --- POWER ------------ Light Ion Engine > --- PROPULSION ------- Aluminum Leg Aluminum Leg > --- UTILITY ---------- Scrap Shield > --- WEAPON ----------- EM Pulse Gun Grenade Launcher > --- INVENTORY -------- Ion Engine Compact Wheel Light Cannon Grenade Launcher [Rating: 9] Favorites ----------- Power Light Ion Engine Engine Light Ion Engine Propulsion Aluminum Leg Leg Aluminum Leg Wheel Compact Wheel Utility Small Storage Unit Storage Small Storage Unit Protection Scrap Shield Weapon EM Pulse Gun Energy Gun EM Pulse Gun Ballistic Gun Light Assault Rifle Ballistic Cannon Light Cannon Launcher Grenade Launcher Build | -11 -10 -10 ------- Run | Yrd Mat Sub Slots Evolved . | . . . Power . | . . . Propulsion . | . . . Utility . | . . . Weapon . | . . . Parts Attached 13 | 6 2 5 Power 1 | 1 . . Engine 1 | 1 . . Core . | . . . Reactor . | . . . Propulsion 4 | 2 . 2 Treads . | . . . Leg 2 | 2 . . Wheel 2 | . . 2 Hover . | . . . Flight . | . . . Utility 3 | 1 1 1 Device . | . . . Storage 1 | 1 . . Processor . | . . . Hackware . | . . . Protection 2 | . 1 1 Artifact . | . . . Weapon 5 | 2 1 2 Energy Gun 1 | 1 . . Energy Cannon . | . . . Ballistic Gun 1 | 1 . . Ballistic Cannon 1 | . . 1 Launcher 2 | . 1 1 Special Weapon . | . . . Impact Weapon . | . . . Slashing Weapon . | . . . Piercing Weapon . | . . . Special Melee Weapon . | . . . Unidentified Prototypes . | . . . Parts Lost 7 | . . 7 Power 1 | . . 1 Propulsion 2 | . . 2 Utility 1 | . . 1 Weapon 3 | . . 3 Highest Loss Streak 7 | . . 7 To Critical Strikes . | . . . Average Backups 4 | 2 5 4 Power . | . 1 1 Propulsion 1 | . 2 1 Utility . | . . . Weapon 1 | . 1 2 Tool/Special . | . . . Unused Backups 3 | . . 3 Power 1 | . . 1 Propulsion . | . . . Utility 1 | . . 1 Weapon 1 | . . 1 Tool/Special . | . . . Average Slot Usage (%) 83 | . 87 78 Engine 13 | . 14 12 Leg 17 | . 28 2 Wheel 9 | . . 23 Storage 8 | . 14 1 Protection 6 | . 2 12 Energy Gun 13 | . 14 12 Ballistic Gun 2 | . 4 . Launcher 10 | . 9 12 Peak Build Rating 9 | 6 7 9 Average Rating 6 | 4 6 8 On Entrance 4 | . 6 7 Avg Prop Armor Cover (%) . | . . . Naked Turns 14 | . . 14 Heaviest Build 26 | 11 14 26 Greatest Support 26 | 20 20 26 Greatest Overweight (x) 2 | 2 . 1 Average Overweight (x) . | . . . Largest Inventory Capacity 8 | 8 8 8 Average Capacity 6 | 7 8 5 Most Carried 7 | 4 7 7 Average Carried 4 | 2 5 3 Final Capacity 8 | 8 8 5 Final Carried 7 | 4 7 2 Class Distribution -------------------- 100% | Mutant Dominant Class ---------------- Mutant | -10/Materials Mutant | -10/Subcaves Resources | -11 -10 -10 ----------- Run | Yrd Mat Sub Matter Collected 311 | 232 49 30 Remotely . | . . . Salvage Created 45 | . . 45 Parts 2 | . . 2 Haulers Intercepted . | . . . Recyclers Shooed . | . . . Parts Field Recycled . | . . . Retrieved Matter . | . . . Parts Self-Destructed 4 | . . 4 Prevented . | . . . Parts Restored . | . . . Kills | -11 -10 -10 ------- Run | Yrd Mat Sub Combat Hostiles Destroyed 2 | . . 2 Cannons 1 | . . 1 AOE 1 | . . 1 Classes Destroyed 1 | . . 1 Subdweller 2 | . . 2 Best Kill Streak 2 | . . 2 Combat Bots Only 2 | . . 2 Max Kills in Single Turn 1 | . . 1 Gunslinging . | . . . Exploded 1 | . . 1 Melee . | . . . Uniques/NPCs Destroyed . | . . . Combat | -11 -10 -10 -------- Run | Yrd Mat Sub Hostile Shots Fired 39 | . 2 37 Missed 13 | . 1 12 Hits 26 | . 1 25 Projectile 26 | . 1 25 AOE 5 | . . 5 Damage Taken 748 | . 14 734 Core 250 | . 14 236 Absorbed by Shields . | . . . Core Remaining (%) 100 | 100 . . Volleys Fired 7 | . 1 6 Largest 2 | . 2 2 Hottest 70 | . 60 70 Shots Fired 11 | . 2 9 Gun 6 | . 2 4 Cannon 2 | . . 2 Launcher 3 | . . 3 Special . | . . . Kinetic 3 | . 1 2 Thermal . | . . . Explosive 3 | . . 3 Electromagnetic 5 | . 1 4 Robot Hit Streak 3 | . 1 3 Robot Miss Streak 1 | . 1 1 Penetration Max . | . . . Secondary Targets . | . . . Shots Hit Robots 6 | . 1 5 Core Hits 10 | . . 10 Critical Kills . | . . . Critical Parts Destroyed . | . . . Critical Strikes . | . . . Melee Attacks . | . . . Impact . | . . . Slashing . | . . . Piercing . | . . . Sneak Attacks . | . . . Combat Hostiles . | . . . Follow-up Attacks . | . . . Damage Inflicted 951 | . 7 944 Guns 42 | . 7 35 Cannons 33 | . . 33 Explosions 876 | . . 876 Melee . | . . . Ramming . | . . . Kinetic 40 | . 7 33 Thermal . | . . . Explosive 876 | . . 876 Electromagnetic 35 | . . 35 Impact . | . . . Slashing . | . . . Piercing . | . . . Highest Corruption . | . . . Average Corruption . | . . . Corruption Purged . | . . . Corruption Blocked . | . . . Overload Shots . | . . . Overflow Damage . | . . . Projectiles . | . . . Explosions . | . . . Melee . | . . . Knockbacks . | . . . Impact . | . . . Kinetic . | . . . Secondary . | . . . Self-Inflicted Damage . | . . . Shots . | . . . Rammed . | . . . Targets Rammed . | . . . Kicked . | . . . Crushed . | . . . Highest Temperature 20 | . 20 . Average Temperature 15 | . 15 . Received Heat Transfer 114 | . 9 105 Siege Activations . | . . . Martial Activations . | . . . Shielding Activations . | . . . Robots Disrupted . | . . . Combat Hostiles . | . . . Robots Corrupted . | . . . Combat Hostiles . | . . . Parts Fried . | . . . Impact Corruptions . | . . . Robots Melted . | . . . Combat Hostiles . | . . . Parts Melted . | . . . Heat Transferred . | . . . Parts Sabotaged . | . . . Parts Stolen . | . . . Parts Stripped . | . . . Power Chain Reactions . | . . . Alert | -11 -10 -10 ------- Run | Yrd Mat Sub Maximum Alert Level . | . . . Low Security (%) 100 | 100 100 . Level 1 . | . . . Level 2 . | . . . Level 3 . | . . . Level 4 . | . . . Level 5 . | . . . High Security . | . . . Max Security . | . . . Peak Influence 5 | . 5 . Initial . | . . . Average . | . . . Influence Increases 9 | . 9 . Successful Hack 9 | . 9 . Influence Decreases 9 | . 9 . Time Decay 9 | . 9 . Squads Dispatched . | . . . Investigation . | . . . Extermination . | . . . Reinforcement . | . . . Assault . | . . . Garrison . | . . . Intercept . | . . . Searches Triggered . | . . . Construction Impeded . | . . . Haulers Reinforced . | . . . Active Scanning Responses . | . . . Cargo Convoy Interrupts . | . . . Stealth | -11 -10 -10 --------- Run | Yrd Mat Sub Distress Signals . | . . . Communications Jammed . | . . . Distress Signals . | . . . Times Spotted 16 | . 3 13 Peak Tracking Total 13 | . 2 13 Tactical Retreats . | . . . Traps | -11 -10 -10 ------- Run | Yrd Mat Sub Traps Triggered . | . . . Indirectly . | . . . Trap Hack Attempts . | . . . Triggered . | . . . Disarmed . | . . . Reprogrammed . | . . . Reused . | . . . Traps Extracted . | . . . Installed . | . . . Triggered . | . . . Machines | -11 -10 -10 ---------- Run | Yrd Mat Sub Machines Disabled . | . . . Max in Single Turn . | . . . Machines Repaired . | . . . Machines Dismantled . | . . . Machines Sabotaged . | . . . Overloaded Fab Kills . | . . . Hacking | -11 -10 -10 --------- Run | Yrd Mat Sub Machines Accessed 2 | . 2 . Terminals 2 | . 2 . Fabricators . | . . . Repair Stations . | . . . Recycling Units . | . . . Scanalyzers . | . . . Garrison Access . | . . . Total Hacks 7 | . 7 . Successful 2 | . 2 . Failed 5 | . 5 . Catastrophic 1 | . 1 . Database Lockouts . | . . . Manual . | . . . Terminals 7 | . 7 . Fabricators . | . . . Repair Stations . | . . . Recycling Units . | . . . Scanalyzers . | . . . Garrison Access . | . . . Terminal Hacks 2 | . 2 . Prototype ID Bank 1 | . 1 . Dispatch Records 1 | . 1 . Fabricator Hacks . | . . . Repair Station Hacks . | . . . Recycling Unit Hacks . | . . . Scanalyzer . | . . . Garrison Access Hacks . | . . . Unauthorized Hacks . | . . . Terminals . | . . . Fabricators . | . . . Repair Stations . | . . . Recycling Units . | . . . Scanalyzers . | . . . Garrison Access . | . . . Data Cores Recovered . | . . . Used . | . . . Hacking Detections 2 | . 2 . Full Trace Events . | . . . Feedback Events . | . . . Feedback Blocked . | . . . Robot Schematics Acquired . | . . . Robots Built . | . . . Authchips . | . . . Time . | . . . Total Robot Build Rating . | . . . Part Schematics Acquired . | . . . Parts Built . | . . . Authchips . | . . . Time . | . . . Total Part Build Rating . | . . . Part Studies Acquired . | . . . Parts Repaired . | . . . Time . | . . . Parts Recycled . | . . . Recycled Matter . | . . . Retrieved Matter . | . . . Retrieved Components . | . . . Parts Scanalyzed . | . . . Part Schematics Acquired . | . . . Parts Damaged . | . . . Bothacking | -11 -10 -10 ------------ Run | Yrd Mat Sub Used RIF Installer . | . . . Robots Hacked . | . . . Non-combat . | . . . Combat . | . . . Robot Hacks Applied . | . . . Relay Couplers Released . | . . . Fabnet Peak Effective % . | . . . Robots Rewired . | . . . Allies Hacked . | . . . Hacks Repelled . | . . . Allies | -11 -10 -10 -------- Run | Yrd Mat Sub Total Allies . | . . . Largest Group . | . . . Highest-Rated Group . | . . . Highest-Rated Ally . | . . . Total Orders . | . . . Ally Attacks . | . . . Total Damage . | . . . Kills . | . . . Allies Corrupted . | . . . Allies Melted . | . . . Intel | -11 -10 -10 ------- Run | Yrd Mat Sub Active Infowar (turns) . | . . . Robot Analysis Total . | . . . Derelict Logs Recovered 1 | . . 1 Drone Launches . | . . . Drone Recoveries . | . . . Exploration | -11 -10 -10 ------------- Run | Yrd Mat Sub Turns Passed 691 | 59 371 261 Spaces Moved 512 | 44 239 229 Core 20 | 13 . 7 Treads . | . . . Legs 274 | 31 239 4 Wheels 218 | . . 218 Hover . | . . . Flight . | . . . Fastest Speed 50 | 50 120 50 Average Speed 105 | 107 120 89 Slowest Speed 150 | 150 120 120 Overloaded Moves . | . . . Propulsion Burnouts . | . . . Robots Hopped . | . . . Potential Cave-ins . | . . . Cave-ins Triggered . | . . . Exploration Rate (%) 17 | 5 33 15 Regions Visited 2 Branch Regions 1 Pre-discovered Areas 1 | . . 1 Known Exits Taken . | . . . Unknown Exits Taken 2 | 1 1 . Scrap Searched . | . . . Spaces Dug . | . . . Terrain Destroyed 7 | . . 7 Melee . | . . . Projectile . | . . . AOE 7 | . . 7 Terrain Rammed . | . . . Walls Destroyed . | . . . Machines Disabled . | . . . Actions | -11 -10 -10 --------- Run | Yrd Mat Sub Total 652 | 53 321 278 Wait 107 | . 75 32 Move 510 | 43 238 229 Hop . | . . . Pick Up 7 | 4 3 . Fast Attach 10 | 6 2 2 Attach 2 | . . 2 Detach 1 | . 1 . Swap 1 | . . 1 Drop 7 | . 1 6 Fire 7 | . 1 6 Melee . | . . . Ram . | . . . Kick . | . . . Crush . | . . . Escape Stasis . | . . . Rewire . | . . . Trap . | . . . Miscellaneous . | . . . Route ------- -11/Scrapyard -10/Materials -10/Subcaves (discovered 1 exit: [*Mat]) History --------- Turn | Location | Event 16 | -11/Scrapyard | Discovered new exit (range 14) 60 | -11/Scrapyard | Entered Materials 314 | -10/Materials | Build established: Mutant 336 | -10/Materials | Discovered new exit (range 7) 431 | -10/Materials | Entered Subcaves 432 | -10/Subcaves | Approached by a straggling Scientist 484 | -10/Subcaves | A swath of the cavern ceiling suddenly collapsed 496 | -10/Subcaves | Discovered new exit (range 15) 541 | -10/Subcaves | Learned location of Zion (-7) 541 | -10/Subcaves | Met a Zionite searching for "candidates" 567 | -10/Subcaves | Learned Materials stockpile data 659 | -10/Subcaves | Ambushed by swarm of Subdwellers 662 | -10/Subcaves | Ambushed by Subdwellers from Twisted Machinery 662 | -10/Subcaves | Ambushed by Subdwellers from Twisted Machinery 664 | -10/Subcaves | Ambushed by Subdweller buried in earth 664 | -10/Subcaves | Ambushed by Subdweller buried in earth 674 | -10/Subcaves | Core integrity fell below 50% 677 | -10/Subcaves | Core integrity fell below 20% 692 | -10/Subcaves | Destroyed by SG-KB2(R) with Subdweller Laser Last Messages --------------- 00662_ ZV-THN(R) emerges from the Twisted Machinery. 00662_ PX-23V(R) angrily emerges from the Twisted Machinery. 00662_ 3V-AYS(R) angrily emerges from the Twisted Machinery. 00662_ ME-J3A(R) angrily emerges from the Twisted Machinery. 00662_ Grenade Launcher destroyed. [Achievement: Do Not Disturb] 00665_ TN-AKS(R): "FREEEEDUMB!" 00665_ SG-KB2(R): "NOSTUCKSUB!" [Achievement: There's More Where That Came From] 00666_ Wheel destroyed. 00668_ Lgt. Ion Engine destroyed. 00668_ RD-NL4(R) destroyed. 00668_ Scrap Shield destroyed. 00668_ RT-HM0(c) destroyed. 00668_ TN-AKS(R) destroyed. 00670_ Com. Wheel destroyed. 00670_ VV-CHV(R) destroyed. 00674_ EM Pulse Gun destroyed. 00674_ Grenade Launcher destroyed. 00689_ ZV-THN(R) destroyed. Map ----- +----------------------------------------------------+ | ?????????????????????????????????????????????? | | ?????????????????????????????????????????????? | | ?????????????????????????????????????????????? | | ?????????????????????????????????????????????? | | ?????????????????????????????????????????????? | | ?????????????????????????????????????????????? | | ?????????????????????????????????????????????? | | ?????????????????????????????????????????????? | | ??????????????????##?????????????????????????? | | ?????????????????## ?????????????????????????? | | ?????????????????# ?????????????????????????? | | ????????????????## #######??????????????????? | | ???????????????## # #####??????????????? | | ???????????????# "" ##?????????????? | | ????????????????# " #?????????????? | | ?????????????????#"" ##????????????? | | ?????????????????# " ###??????????? | | ?????????????????# " # ###?????? | | ??????????????????#" & #????? | | ?????????????????## !%! "" #????? | | ???????????????### * #???? | | ???????????????# "" # % #?### | | ???????????????# % ######### %[ ##% | | ???????????????# R#???????# & | | ???????????????# *R##?????# ## | | ???????????????# ## [@#?????## #?# | | ???????????????#### #??????# ?# #### | | ??????????????????# ##?????? ?## #????? | | ??????????????????####?????? #??## ###??? | | ??????????????????????????? ###### ##?? | | ?????????????????????????? ?# ##? | | ????????????????????????? ?## ## | | ???????????????????????? ## ??#### # | | ??????????????????####???? #?# ?????# | | ??????????????????# ##????????????## ## | | ??????????????????# #??????????### ##?# | | ??????????????????# #??????????# ##???# | | ?????????????????## ##??????????## ##????? | | ???????????????### ####?????????### ##????? | | ???????????????# ##??????????## ##???? | | ???????????????# ! ##??####?##### ##??? | | ??????????????##!=[ #??# ## ## ##?? | | ??????????????# ! ### ##?? ## #?? | | ??????????????## #### #### ## #### | | ???????????????# %# ## #?## | | ???????????????# ### | | ???????????????# ### | | ???????????? %## # ## ## ## # | | ???????????### ## ### ## ####?### | | ?????????????## ### ## ######??????## | +----------------------------------------------------+ Best States ------------- Heat Dissipation 25 Energy Generation 10 Energy Capacity 125 Matter Stores 300 Matter Capacity 300 Sight Range 16 Terrain Scan Density 10 Armor Coverage 800 Propulsion Shielding 33 Evasion (%) 55 Item Schematics ----------------- None Robot Schematics ------------------ None Fabricated ------------ Nothing Repaired ---------- Nothing Studied --------- None Alien Tech Used ----------------- None Achievements -------------- Do Not Disturb There's More Where That Came From Challenges ------------ None Game ------ Seed SwordProjectionAxe Manual? 0 Play Time 00:16:37 Cumulative 6.4 hours Start 2025.10.22 @ 17:36:24 End 2025.10.22 @ 17:51:00 Sessions 1 Manual Loads 0 Difficulty Rogue Special Mode None Game No. 12 Rogue 12 Adventurer 0 Explorer 0 Win Type - Total 0 Types 0/0/0/0/0/0/0/0/0/0 Lore% 9 Gallery% 13 Achievement% 8 Wizard Run 0 Options --------- Layout 0 ASCII 0 Keyboard 0 Movement Numpad Keybinds 0 Fullscreen 2 Font 24/Smallcaps Map View 76x50 Zoom Use 0% Tactical HUD 1 Map Filters NONE Filters NONE Steam 1 RUN: cb542bbd-0fc9-44ff-8906-00e25f7e85f2